fUSD/lending_fUSD_20260116
["ID","MTS","AMOUNT","RATE_DAILY","PERIOD"]
[402124221,1768531848761,-564.51,0.00035616,10]
[402124223,1768531848770,-504.76713638,0.00035616,10]
[402124224,1768531848781,-679.02,0.00035616,10]
[402124226,1768531848790,-500.0,0.00035616,10]
[402124229,1768531848799,-500.0,0.00035616,10]
[402124231,1768531848809,-500.0,0.00035616,10]
[402124233,1768531848819,-504.09591111,0.00035616,10]
[402124235,1768531848828,-502.12185486,0.00035616,10]
[402124237,1768531848838,-500.0,0.00035616,10]
[402124239,1768531848848,-500.0,0.00035616,10]
[402124241,1768531848857,-500.0,0.00035616,10]
[402124243,1768531848867,-535.79,0.00035616,10]
[402124245,1768531848875,-500.0,0.00035616,10]
[402124247,1768531848884,-500.0,0.00035616,10]
[402124249,1768531848894,-500.0,0.00035616,10]
[402124251,1768531848904,-816.15,0.00035616,10]
[402124253,1768531848913,-807.45,0.00035616,10]
[402124255,1768531848923,-407.96741056,0.00035616,10]
[402124257,1768531848935,-800.34,0.00035616,10]
[402124259,1768531848946,-990.39,0.00035616,10]
[402124261,1768531848955,-1337.07,0.00035616,10]
[402124263,1768531848964,-506.71688371,0.00035616,10]
[402124265,1768531848974,-548.97,0.00035616,10]
[402124267,1768531848983,-500.0,0.00035616,10]
[402124269,1768531848993,-500.0,0.00035616,10]
[402124271,1768531849004,-500.0,0.00035616,10]
[402124273,1768531849013,-500.0,0.00035616,10]
[402124275,1768531849022,-500.0,0.00035616,10]
[402124277,1768531849032,-554.58,0.00035616,10]
[402124279,1768531849041,-500.0,0.00035616,10]
[402124281,1768531849050,-500.0,0.00035616,10]
[402124283,1768531849059,-500.0,0.00035616,10]
[402124285,1768531849068,-500.0,0.00035616,10]
[402124287,1768531849077,-585.05,0.00035616,10]
[402124289,1768531849086,-590.67,0.00035616,10]
[402124291,1768531849096,-500.0,0.00035616,10]
[402124293,1768531849105,-500.0,0.00035616,10]
[402124295,1768531849114,-500.0,0.00035616,10]
[402124297,1768531849123,-995.1,0.00035616,10]
[402124299,1768531849132,-756.08,0.00035616,10]
[402124301,1768531849141,-654.54,0.00035616,10]
[402124303,1768531849151,-503.94482505,0.00035616,10]
[402124305,1768531849160,-558.47,0.00035616,10]
[402124307,1768531849169,-772.33,0.00035616,10]
[402124309,1768531849178,-500.0,0.00035616,10]
[402124311,1768531849187,-500.0,0.00035616,10]
[402124313,1768531849197,-1111.81,0.00035616,10]
[402124315,1768531849206,-1024.71,0.00035616,10]
[402124316,1768531849215,-500.0,0.00035616,10]
[402124318,1768531849225,-500.0,0.00035616,10]
[402124320,1768531849233,-500.0,0.00035616,10]
[402124322,1768531849242,-831.24,0.00035616,10]
[402124324,1768531849251,-500.0,0.00035616,10]
[402124326,1768531849261,-553.99,0.00035616,10]
[402124328,1768531849270,-500.0,0.00035616,10]
[402124330,1768531849280,-1053.84,0.00035616,2]
[402124332,1768531849289,-782.64,0.00035616,10]
[402124334,1768531849298,-502.39046586,0.00035616,10]
[402124336,1768531849307,-1082.46,0.00035616,10]
[402124338,1768531849316,-500.0,0.00035616,10]
[402124340,1768531849325,-1398.41,0.00035616,10]
[402124342,1768531849334,-1395.51,0.00035616,10]
[402124344,1768531849343,-500.0,0.00035616,10]
[402124346,1768531849355,-500.0,0.00035616,10]
[402124348,1768531849364,-1372.35,0.00035616,10]
[402124350,1768531849373,-500.0,0.00035616,10]
[402124352,1768531849382,-500.0,0.00035616,10]
[402124354,1768531849392,-500.0,0.00035616,10]
[402124356,1768531849401,-500.0,0.00035616,10]
[402124359,1768531849410,-511.1846764,0.00035616,10]
[402124361,1768531849421,-564.94803569,0.00035616,10]
[402124363,1768531849430,-504.40133761,0.00035616,10]
[402124365,1768531849439,-572.44153588,0.00035616,10]
[402124367,1768531849448,-627.88268977,0.00035616,10]
[402124369,1768531849457,-500.0,0.00035616,10]
[402124371,1768531849466,-500.0,0.00035616,10]
[402124373,1768531849476,-500.0,0.00035616,10]
[402124375,1768531849486,-500.0,0.00035616,10]
[402124377,1768531849495,-500.0,0.00035616,10]
[402124379,1768531849505,-500.0,0.00035616,10]
[402124381,1768531849514,-500.0,0.00035616,10]
[402124383,1768531849523,-1146.99,0.00035616,10]
[402124385,1768531849533,-516.58,0.00035616,10]
[402124387,1768531849542,-1563.91,0.00035616,10]
[402124389,1768531849552,-501.0284698,0.00035616,10]
[402124391,1768531849563,-500.0,0.00035616,10]
[402124393,1768531849572,-1514.61,0.00035616,10]
[402124395,1768531849581,-500.0,0.00035616,10]
[402124397,1768531849593,-505.54935538,0.00035616,10]
[402124399,1768531849602,-500.0,0.00035616,10]
[402124401,1768531849612,-500.0,0.00035616,10]
[402124403,1768531849621,-501.9550499,0.00035616,10]
[402124405,1768531849630,-500.0,0.00035616,10]
[402124407,1768531849639,-504.11198711,0.00035616,10]
[402124409,1768531849648,-500.0,0.00035616,10]
[402124411,1768531849658,-500.0,0.00035616,10]
[402124413,1768531849667,-1050.37,0.00035616,10]
[402124415,1768531849677,-500.0,0.00035616,10]
[402124417,1768531849686,-541.48,0.00035616,10]
[402124419,1768531849695,-504.23380146,0.00035616,10]
[402124421,1768531849705,-500.0,0.00035616,10]
[402124423,1768531849715,-500.0,0.00035616,10]
[402124425,1768531849725,-500.0,0.00035616,10]
[402124427,1768531849735,-502.78186927,0.00035616,10]
[402124429,1768531849744,-500.0,0.00035616,10]
[402124431,1768531849754,-702.81,0.00035616,10]
[402124433,1768531849764,-979.86,0.00035616,10]
[402124435,1768531849773,-573.52,0.00035616,10]
[402124437,1768531849782,-814.57,0.00035616,10]
[402124439,1768531849791,-500.0,0.00035616,10]
[402124441,1768531849802,-1092.39,0.00035616,10]
[402124444,1768531849812,-500.0,0.00035616,10]
[402124446,1768531849821,-616.88,0.00035616,10]
[402124448,1768531849830,-500.0,0.00035616,10]
[402124450,1768531849840,-502.39766219,0.00035616,2]
[402124452,1768531849849,-501.46607283,0.00035616,10]
[402124454,1768531849858,-500.0,0.00035616,10]
[402124456,1768531849867,-500.0,0.00035616,10]
[402124458,1768531849877,-500.0,0.00035616,10]
[402124460,1768531849886,-500.0,0.00035616,10]
[402124462,1768531849895,-643.54,0.00035616,10]
[402124464,1768531849905,-506.3123678,0.00035616,10]
[402124466,1768531849914,-500.0,0.00035616,10]
[402124468,1768531849924,-615.74742609,0.00035616,10]
[402124470,1768531849937,-500.0,0.00035616,10]
[402124472,1768531849946,-500.0,0.00035616,10]
[402124474,1768531849955,-385.01759831,0.00035616,10]
[402124476,1768531849965,-500.0,0.00035616,10]
[402124478,1768531849975,-600.35,0.00035616,10]
[402124480,1768531849984,-613.33,0.00035616,10]
[402124482,1768531849993,-500.0,0.00035616,10]
[402124484,1768531850002,-741.74,0.00035616,10]
[402124486,1768531850014,-501.26554391,0.00035616,10]
[402124488,1768531850023,-244.31666338,0.00035616,10]
[402124490,1768531850032,-521.29636723,0.00035616,10]
[402124492,1768531850041,-500.0,0.00035616,10]
[402124494,1768531850053,-675.6,0.00035616,10]
[402124496,1768531850062,-641.29,0.00035616,10]
[402124498,1768531850071,-500.0,0.00035616,10]
[402124500,1768531850080,-504.93650957,0.00035616,10]
[402124502,1768531850089,-658.76,0.00035616,10]
[402124504,1768531850098,-577.65570216,0.00035616,10]
[402124506,1768531850107,-504.29656829,0.00035616,10]
[402124509,1768531850117,-1111.0,0.00035616,10]
[402124511,1768531850127,-1033.86,0.00035616,10]
[402124513,1768531850136,-500.0,0.00035616,10]
[402124515,1768531850146,-500.0,0.00035616,10]
[402124517,1768531850155,-500.0,0.00035616,10]
[402124519,1768531850164,-638.35,0.00035616,10]
[402124521,1768531850173,-505.07091006,0.00035616,10]
[402124532,1768531850181,-500.0,0.00035616,10]
[402124534,1768531850272,-500.0,0.00035616,10]
[402124536,1768531850281,-826.43,0.00035616,10]
[402124538,1768531850290,-500.0,0.00035616,10]
[402124540,1768531850299,-1182.98,0.00035616,10]
[402124542,1768531850307,-1133.3,0.00035616,10]
[402124544,1768531850316,-528.67,0.00035616,10]
[402124546,1768531850325,-500.0,0.00035616,10]
[402124548,1768531850334,-500.0,0.00035616,10]
[402124550,1768531850343,-500.0,0.00035616,10]
[402124552,1768531850352,-517.74,0.00035616,10]
[402124554,1768531850361,-500.0,0.00035616,10]
[402124556,1768531850370,-806.73,0.00035616,10]
[402124558,1768531850378,-771.84,0.00035616,10]
[402124560,1768531850387,-500.0,0.00035616,10]
[402124562,1768531850396,-500.0,0.00035616,10]
[402124564,1768531850405,-555.9646764,0.00035616,10]
[402124566,1768531850414,-515.05829728,0.00035616,10]
[402124568,1768531850423,-500.0,0.00035616,10]
[402124570,1768531850432,-2242.23,0.00035616,10]
[402124572,1768531850441,-500.0,0.00035616,10]
[402124574,1768531850450,-500.0,0.00035616,10]
[402124576,1768531850460,-579.00834116,0.00035616,10]
[402124577,1768531850470,-834.24,0.00035616,10]
[402124579,1768531850479,-500.0,0.00035616,10]
[402124581,1768531850488,-500.0,0.00035616,10]
[402124583,1768531850497,-500.0,0.00035616,10]
[402124585,1768531850507,-500.0,0.00035616,10]
[402124587,1768531850517,-500.0,0.00035616,10]
[402124589,1768531850526,-500.0,0.00035616,10]
[402124591,1768531850535,-500.0,0.00035616,10]
[402124593,1768531850544,-500.0,0.00035616,10]
[402124595,1768531850553,-500.0,0.00035616,10]
[402124597,1768531850562,-500.0,0.00035616,10]
[402124600,1768531850572,-500.0,0.00035616,10]
[402124601,1768531850581,-1252.63,0.00035616,10]
[402124603,1768531850591,-669.34,0.00035616,10]
[402124605,1768531850600,-591.02,0.00035616,10]
[402124607,1768531850610,-475.29608508,0.00035616,10]
[402124609,1768531850619,-601.75,0.00035616,10]
[402124611,1768531850628,-513.39,0.00035616,10]
[402124613,1768531850637,-500.0,0.00035616,10]
[402124615,1768531850646,-682.85,0.00035616,10]
[402124618,1768531850658,-563.95,0.00035616,10]
[402124620,1768531850668,-505.98469534,0.00035616,10]
[402124622,1768531850677,-501.60506344,0.00035616,10]
[402124624,1768531850686,-484.89014911,0.00035616,10]
[402124625,1768531850695,-701.66,0.00035616,10]
[402124628,1768531850705,-504.03288248,0.00035616,10]
[402124630,1768531850717,-500.0,0.00035616,10]
[402124632,1768531850727,-500.0,0.00035616,10]
[402124634,1768531850738,-500.0,0.00035616,10]
[402124635,1768531850756,-578.18597387,0.00035616,10]
[402124637,1768531850776,-500.0,0.00035616,10]
[402124639,1768531850785,-500.0,0.00035616,10]
[402124641,1768531850794,-500.0,0.00035616,10]
[402124643,1768531850803,-500.0,0.00035616,10]
[402124645,1768531850812,-500.0,0.00035616,10]
[402124647,1768531850821,-500.0,0.00035616,10]
[402124649,1768531850830,-500.0,0.00035616,10]
[402124651,1768531850839,-1725.72,0.00035616,10]
[402124653,1768531850848,-544.89,0.00035616,10]
[402124655,1768531850858,-582.08,0.00035616,10]
[402124657,1768531850867,-500.0,0.00035616,10]
[402124660,1768531850877,-557.47795454,0.00035616,10]
[402124662,1768531850886,-500.0,0.00035616,10]
[402124664,1768531850895,-500.0,0.00035616,10]
[402124666,1768531850904,-516.47,0.00035616,10]
[402124668,1768531850913,-1044.25,0.00035616,10]
[402124670,1768531850922,-500.04472716,0.00035616,10]
[402124672,1768531850933,-502.37318518,0.00035616,10]
[402124674,1768531850942,-552.98,0.00035616,10]
[402124675,1768531850951,-594.78,0.00035616,10]
[402124677,1768531850960,-500.0,0.00035616,10]
[402124679,1768531850969,-500.0,0.00035616,10]
[402124681,1768531850980,-500.0,0.00035616,10]
[402124683,1768531850989,-500.0,0.00035616,10]
[402124685,1768531850998,-524.29535592,0.00035616,10]
[402124687,1768531851009,-155.20489465,0.00035616,10]
[402124689,1768531851018,-500.0,0.00035616,10]
[402124691,1768531851027,-500.0,0.00035616,10]
[402124693,1768531851037,-500.93322505,0.00035616,10]
[402124695,1768531851046,-539.49249373,0.00035616,10]
[402124697,1768531851055,-654.07,0.00035616,10]
[402124699,1768531851065,-626.18,0.00035616,10]
[402124701,1768531851074,-413.49619943,0.00035616,10]
[402124703,1768531851084,-500.0,0.00035616,10]
[402124705,1768531851094,-500.0,0.00035616,10]
[402124707,1768531851103,-500.0,0.00035616,10]
[402124709,1768531851112,-500.0,0.00035616,10]
[402124711,1768531851122,-500.0,0.00035616,10]
[402124713,1768531851131,-1061.23,0.00035616,10]
[402124715,1768531851140,-500.0,0.00035616,10]
[402124717,1768531851149,-503.86186339,0.00035616,10]
[402124719,1768531851158,-500.0,0.00035616,10]
[402124721,1768531851167,-500.0,0.00035616,10]
[402124723,1768531851176,-510.10677801,0.00035616,10]
[402124725,1768531851185,-671.14,0.00035616,10]
[402124727,1768531851193,-507.69910647,0.00035616,10]
[402124729,1768531851202,-500.0,0.00035616,10]
[402124731,1768531851211,-690.16,0.00035616,10]
[402124732,1768531851220,-500.0,0.00035616,10]
[402124734,1768531851229,-517.42,0.00035616,10]
[402124736,1768531851238,-634.0,0.00035616,10]
[402124738,1768531851247,-500.0,0.00035616,10]
[402124741,1768531851256,-500.0,0.00035616,10]
[402124742,1768531851265,-801.13,0.00035616,10]
[402124744,1768531851273,-772.62,0.00035616,10]
[402124746,1768531851283,-500.0,0.00035616,10]
[402124748,1768531851291,-279.98633563,0.00035616,10]
[402124750,1768531851300,-500.0,0.00035616,10]
[402124752,1768531851309,-500.0,0.00035616,10]
[402124754,1768531851317,-500.0,0.00035616,10]
[402124756,1768531851326,-500.0,0.00035616,10]
[402124758,1768531851335,-500.0,0.00035616,10]
[402124760,1768531851344,-500.0,0.00035616,10]
[402124762,1768531851353,-1689.93,0.00035616,10]
[402124764,1768531851362,-503.31171979,0.00035616,10]
[402124766,1768531851371,-1247.89,0.00035616,10]
[402124768,1768531851380,-500.0,0.00035616,10]
[402124770,1768531851389,-500.0,0.00035616,10]
[402124772,1768531851398,-500.0,0.00035616,10]
[402124775,1768531851407,-588.43954939,0.00035616,10]
[402124777,1768531851417,-560.71215991,0.00035616,10]
[402124779,1768531851426,-675.48,0.00035616,10]
[402124780,1768531851435,-500.0,0.00035616,10]
[402124783,1768531851444,-517.10024475,0.00035616,10]
[402124784,1768531851453,-1278.48,0.00035616,10]
[402124786,1768531851462,-712.11,0.00035616,10]
[402124788,1768531851471,-500.0,0.00035616,10]
[402124790,1768531851480,-894.65,0.00035616,10]
[402124792,1768531851489,-534.66811304,0.00035616,10]
[402124794,1768531851498,-504.35412319,0.00035616,10]
[402124796,1768531851507,-618.96496564,0.00035616,10]
[402124798,1768531851518,-500.0,0.00035616,10]
[402124800,1768531851528,-730.61,0.00035616,10]
[402124803,1768531851538,-579.06,0.00035616,10]
[402124804,1768531851547,-1034.79,0.00035616,10]
[402124807,1768531851556,-500.0,0.00035616,10]
[402124809,1768531851566,-500.0,0.00035616,10]
[402124811,1768531851575,-708.09,0.00035616,10]
[402124813,1768531851584,-500.0,0.00035616,10]
[402124814,1768531851593,-500.0,0.00035616,10]
[402124816,1768531851602,-500.0,0.00035616,10]
[402124818,1768531851611,-604.95,0.00035616,10]
[402124820,1768531851620,-505.28128391,0.00035616,10]
[402124822,1768531851629,-500.0,0.00035616,10]
[402124824,1768531851638,-500.0,0.00035616,10]
[402124826,1768531851647,-578.81342787,0.00035616,10]
[402124828,1768531851656,-535.54,0.00035616,10]
[402124830,1768531851665,-507.1309657,0.00035616,10]
[402124832,1768531851675,-500.0,0.00035616,10]
[402124834,1768531851684,-500.0,0.00035616,10]
[402124836,1768531851693,-616.56675438,0.00035616,10]
[402124838,1768531851702,-557.51,0.00035616,10]
[402124840,1768531851711,-508.10391466,0.00035616,10]
[402124842,1768531851719,-500.0,0.00035616,10]
[402124844,1768531851728,-504.5695906,0.00035616,10]
[402124846,1768531851737,-500.0,0.00035616,10]
[402124848,1768531851746,-500.0,0.00035616,10]
[402124850,1768531851756,-500.0,0.00035616,10]
[402124852,1768531851765,-500.0,0.00035616,10]
[402124854,1768531851773,-1345.69,0.00035616,10]
[402124855,1768531851787,-504.92967711,0.00035616,10]
[402124857,1768531851805,-342.36586733,0.00035616,10]
[402124859,1768531851814,-620.61233462,0.00035616,10]
[402124861,1768531851823,-500.0,0.00035616,10]
[402124863,1768531851832,-500.0,0.00035616,10]
[402124865,1768531851841,-500.0,0.00035616,10]
[402124867,1768531851850,-669.7,0.00035616,10]
[402124869,1768531851860,-500.0,0.00035616,10]
[402124871,1768531851869,-743.24,0.00035616,10]
[402124873,1768531851878,-500.0,0.00035616,10]
[402124875,1768531851887,-886.81,0.00035616,10]
[402124877,1768531851898,-500.0,0.00035616,10]
[402124879,1768531851907,-611.72885941,0.00035616,10]
[402124881,1768531851915,-553.88,0.00035616,10]
[402124883,1768531851924,-500.0,0.00035616,10]
[402124885,1768531851935,-500.0,0.00035616,10]
[402124886,1768531851945,-658.51,0.00035616,10]
[402124888,1768531851953,-935.53,0.00035616,10]
[402124890,1768531851963,-500.0,0.00035616,10]
[402124892,1768531851971,-421.33739997,0.00035616,10]
[402124894,1768531851982,-500.0,0.00035616,10]
[402124896,1768531851991,-500.0,0.00035616,10]
[402124898,1768531852000,-783.81,0.00035616,10]
[402124900,1768531852010,-507.967531,0.00035616,10]
[402124902,1768531852019,-509.05169724,0.00035616,10]
[402124904,1768531852028,-500.0,0.00035616,10]
[402124906,1768531852039,-500.0,0.00035616,10]
[402124908,1768531852049,-1307.68,0.00035616,10]
[402124910,1768531852058,-500.0,0.00035616,10]
[402124912,1768531852068,-500.0,0.00035616,10]
[402124914,1768531852077,-500.0,0.00035616,10]
[402124916,1768531852086,-501.99493829,0.00035616,10]
[402124918,1768531852095,-901.71,0.00035616,10]
[402124920,1768531852104,-500.0,0.00035616,10]
[402124922,1768531852113,-500.0,0.00035616,10]
[402124924,1768531852121,-975.01,0.00035616,10]
[402124926,1768531852130,-500.0,0.00035616,10]
[402124928,1768531852139,-500.0,0.00035616,10]
[402124930,1768531852149,-507.61127337,0.00035616,10]
[402124932,1768531852157,-529.09901759,0.00035616,10]
[402124934,1768531852166,-661.84,0.00035616,10]
[402124936,1768531852175,-500.0,0.00035616,10]
[402124937,1768531852184,-500.0,0.00035616,10]
[402124939,1768531852193,-1757.87,0.00035616,10]
[402124941,1768531852203,-500.0,0.00035616,10]
[402124943,1768531852212,-506.39921459,0.00035616,10]
[402124945,1768531852221,-501.55134596,0.00035616,10]
[402124947,1768531852229,-500.0,0.00035616,10]
[402124949,1768531852238,-500.0,0.00035616,10]
[402124951,1768531852247,-553.09,0.00035616,10]
[402124953,1768531852256,-500.0,0.00035616,10]
[402124955,1768531852265,-505.05744659,0.00035616,10]
[402124957,1768531852274,-500.0,0.00035616,2]
[402124959,1768531852283,-501.40725919,0.00035616,10]
[402124961,1768531852291,-511.96657785,0.00035616,10]
[402124963,1768531852302,-799.18,0.00035616,10]
[402124965,1768531852311,-566.05853341,0.00035616,10]
[402124967,1768531852320,-2720.27,0.00035616,10]
[402124969,1768531852330,-886.14,0.00035616,10]
[402124971,1768531852339,-643.91,0.00035616,10]
[402124973,1768531852348,-653.74,0.00035616,10]
[402124975,1768531852356,-500.0,0.00035616,10]
[402124976,1768531852366,-500.0,0.00035616,10]
[402124978,1768531852374,-500.0,0.00035616,10]
[402124980,1768531852383,-1013.74340533,0.00035616,10]
[402124982,1768531852392,-500.0,0.00035616,10]
[402124984,1768531852401,-658.75,0.00035616,10]
[402124986,1768531852410,-500.0,0.00035616,10]
[402124988,1768531852419,-500.0,0.00035616,10]
[402124990,1768531852428,-500.0,0.00035616,10]
[402124992,1768531852438,-1321.33,0.00035616,10]
[402124994,1768531852447,-500.0,0.00035616,10]
[402124996,1768531852456,-500.0,0.00035616,10]
[402124998,1768531852465,-503.55597297,0.00035616,10]
[402125000,1768531852474,-588.46015877,0.00035616,10]
[402125002,1768531852483,-1372.25,0.00035616,10]
[402125004,1768531852492,-500.0,0.00035616,10]
[402125006,1768531852501,-795.26,0.00035616,10]
[402125008,1768531852510,-500.0,0.00035616,10]
[402125010,1768531852519,-504.41278304,0.00035616,10]
[402125011,1768531852528,-500.0,0.00035616,10]
[402125013,1768531852538,-502.92515442,0.00035616,10]
[402125015,1768531852547,-503.23896665,0.00035616,10]
[402125017,1768531852556,-522.99655894,0.00035616,10]
[402125019,1768531852565,-500.0,0.00035616,10]
[402125021,1768531852574,-502.16467197,0.00035616,10]
[402125023,1768531852583,-500.0,0.00035616,10]
[402125025,1768531852593,-500.0,0.00035616,10]
[402125027,1768531852603,-1990.28,0.00035616,10]
[402125029,1768531852612,-502.1242434,0.00035616,10]
[402125031,1768531852622,-500.0,0.00035616,10]
[402125033,1768531852631,-500.0,0.00035616,10]
[402125034,1768531852640,-505.941903,0.00035616,30]
[402125036,1768531852650,-500.0,0.00035616,10]
[402125038,1768531852659,-500.0,0.00035616,10]
[402125040,1768531852668,-3561.85,0.00035616,10]
[402125042,1768531852678,-500.0,0.00035616,10]
[402125044,1768531852687,-1969.9,0.00035616,10]
[402125046,1768531852696,-500.0,0.00035616,10]
[402125048,1768531852705,-500.0,0.00035616,10]
[402125050,1768531852714,-1193.62,0.00035616,10]
[402125052,1768531852723,-500.0,0.00035616,10]
[402125054,1768531852732,-500.0,0.00035616,10]
[402125056,1768531852741,-500.0,0.00035616,10]
[402125058,1768531852750,-591.46,0.00035616,10]
[402125060,1768531852760,-573.79361299,0.00035616,10]
[402125062,1768531852769,-661.2,0.00035616,10]
[402125064,1768531852778,-951.36,0.00035616,10]
[402125066,1768531852787,-685.86,0.00035616,10]
[402125068,1768531852796,-507.2834974,0.00035616,10]
[402125070,1768531852805,-500.0,0.00035616,10]
[402125072,1768531852814,-1022.34,0.00035616,10]
[402125074,1768531852824,-505.43554778,0.00035616,10]
[402125076,1768531852832,-500.0,0.00035616,10]
[402125078,1768531852842,-500.0,0.00035616,10]
[402125080,1768531852852,-875.24,0.00035616,10]
[402125082,1768531852861,-500.0,0.00035616,10]
[402125084,1768531852871,-502.17092893,0.00035616,10]
[402125086,1768531852880,-500.0,0.00035616,10]
[402125088,1768531852890,-989.02,0.00035616,10]
[402125090,1768531852899,-995.22,0.00035616,10]
[402125092,1768531852908,-500.0,0.00035616,10]
[402125094,1768531852919,-1037.69,0.00035616,10]
[402125095,1768531852930,-518.04212425,0.00035616,10]
[402125097,1768531852943,-500.0,0.00035616,10]
[402125099,1768531852954,-502.4597894,0.00035616,10]
[402125102,1768531852965,-500.0,0.00035616,10]
[402125103,1768531852975,-526.9922675,0.00035616,10]
[402125105,1768531852985,-500.0,0.00035616,10]
[402125107,1768531852995,-500.0,0.00035616,10]
[402125110,1768531853011,-1266.31,0.00035616,10]
[402125112,1768531853029,-500.0,0.00035616,10]
[402125114,1768531853040,-512.93,0.00035616,10]
[402125116,1768531853050,-502.00744164,0.00035616,10]
[402125118,1768531853060,-500.0,0.00035616,10]
[402125120,1768531853070,-585.22707887,0.00035616,10]
[402125122,1768531853080,-500.0,0.00035616,10]
[402125124,1768531853089,-733.71,0.00035616,10]
[402125126,1768531853099,-507.07589851,0.00035616,10]
[402125128,1768531853109,-500.0,0.00035616,10]
[402125130,1768531853120,-562.06209008,0.00035616,10]
[402125132,1768531853130,-616.44926918,0.00035616,10]
[402125134,1768531853140,-946.08,0.00035616,10]
[402125136,1768531853150,-606.54,0.00035616,10]
[402125138,1768531853159,-500.0,0.00035616,10]
[402125140,1768531853169,-506.63912405,0.00035616,10]
[402125142,1768531853179,-621.0,0.00035616,10]
[402125144,1768531853189,-1016.17,0.00035616,10]
[402125146,1768531853199,-500.0,0.00035616,10]
[402125148,1768531853208,-564.89722128,0.00035616,10]
[402125149,1768531853218,-500.0,0.00035616,10]
[402125151,1768531853228,-2111.51,0.00035616,10]
[402125153,1768531853238,-500.0,0.00035616,10]
[402125156,1768531853248,-538.61911702,0.00035616,10]
[402125157,1768531853257,-1011.76,0.00035616,10]
[402125159,1768531853267,-641.35,0.00035616,10]
[402125161,1768531853276,-511.04487956,0.00035616,10]
[402125163,1768531853285,-500.0,0.00035616,10]
[402125165,1768531853295,-167.31286308,0.00035616,10]
[402125168,1768531853306,-500.0,0.00035616,10]
[402125170,1768531853316,-798.75,0.00035616,10]
[402125172,1768531853325,-502.37959022,0.00035616,10]
[402125173,1768531853335,-500.0,0.00035616,10]
[402125176,1768531853347,-503.63310154,0.00035616,10]
[402125178,1768531853357,-659.02,0.00035616,10]
[402125180,1768531853366,-1090.11,0.00035616,10]
[402125182,1768531853376,-500.0,0.00035616,10]
[402125184,1768531853385,-500.0,0.00035616,10]
[402125186,1768531853395,-500.0,0.00035616,10]
[402125188,1768531853405,-500.0,0.00035616,10]
[402125190,1768531853415,-151.318326,0.00035616,31]
[402125192,1768531853424,-500.0,0.00035616,10]
[402125194,1768531853435,-591.13914545,0.00035616,10]
[402125196,1768531853445,-500.0,0.00035616,10]
[402125197,1768531853455,-1440.0,0.00035616,10]
[402125199,1768531853465,-500.0,0.00035616,10]
[402125202,1768531853475,-502.35346626,0.00035616,10]
[402125204,1768531853485,-1335.63,0.00035616,10]
[402125206,1768531853495,-502.65019026,0.00035616,10]
[402125207,1768531853505,-1087.61,0.00035616,10]
[402125209,1768531853514,-500.0,0.00035616,10]
[402125211,1768531853524,-526.48,0.00035616,10]
[402125213,1768531853534,-695.57,0.00035616,10]
[402125215,1768531853544,-785.33,0.00035616,10]
[402125217,1768531853554,-500.0,0.00035616,10]
[402125218,1768531853563,-504.7490422,0.00035616,10]
[402125219,1768531853572,-500.0,0.00035616,10]